bitfinex/quotes_ETHUSD_20260219
["timestamp","ask_amount","ask_price","bid_price","bid_amount"]
[1771514576141,1.3031693,1918.4,1917.7,0.0011]
[1771514576352,2.65554104,1918.4,1917.7,0.0011]
[1771514576550,7.175308,1918.3,1917.7,0.0011]
[1771514576749,3.256285,1918.3,1917.7,0.0011]
[1771514577247,0.42451787,1918.2,1917.5,1.29037298]
[1771514577417,3.25154104,1918.4,1917.5,1.29037298]
[1771514577617,4.883316,1918.3,1917.5,1.29037298]
[1771514578354,4.883316,1918.3,1917.3,1.89386944]
[1771514578355,2.65567692,1918.2,1917.3,1.89386944]
[1771514579147,2.65567692,1918.2,1917.4,1.33448194]
[1771514579148,0.596,1918.2,1917.4,1.33448194]
[1771514579336,11.55850474,1918.3,1917.3,1.89386944]
[1771514579527,1.35237174,1918.3,1917.3,3.22835138]
[1771514579851,0.001,1918.8,1917.4,1.33448194]
[1771514579852,0.596,1918.6,1917.4,1.33448194]
[1771514580150,1.94837174,1918.7,1917.4,1.33448194]
[1771514580449,1.35237174,1918.7,1917.6,1.33448194]
[1771514580630,1.30389828,1918.8,1917.6,1.33448194]
[1771514581340,2.75596058,1918.8,1917.6,1.33448194]
[1771514582139,2.75596058,1918.8,1917.5,1.30378096]
[1771514582140,1.4520623,1918.6,1917.5,1.30378096]
[1771514582345,1.4520623,1918.4,1917.4,1.30384896]
[1771514582637,1.4520623,1918.4,1917.3,1.89388081]
[1771514583041,1.4520623,1918.2,1917.3,1.30388081]
[1771514583432,5.21208686,1918.7,1917.5,1.44366466]
[1771514583749,5.80808686,1918.7,1917.5,1.44366466]
[1771514583952,11.533563,1918.6,1917.5,1.44366466]
[1771514584156,1.4520623,1918.6,1917.5,1.44366466]
[1771514584982,1.30310138,1918.5,1917.6,1.30371297]
[1771514585128,6.6643411,1918.6,1917.6,2.74737763]
[1771514585129,2.7551447,1918.6,1917.6,2.74737763]
[1771514585329,0.596,1918.7,1917.7,1.44366466]
[1771514585525,1.30396512,1918.8,1917.7,1.44366466]
[1771514585865,1.30356549,1919.3,1918.3,1.44366466]
[1771514586058,6.6323513,1919.2,1918.3,0.589]
[1771514586258,5.187646,1919.1,1918.3,0.589]
[1771514586436,2.075583,1919.1,1918.3,0.589]
[1771514586637,1.30356549,1919.3,1918.3,0.589]
[1771514586841,0.596,1919.2,1918.3,0.589]
[1771514587044,3.082108,1919.0,1918.3,0.589]
[1771514587238,3.082108,1919.0,1918.1,2.24233478]
[1771514587239,1.46790189,1918.7,1917.7,0.589]
[1771514587446,1.46790189,1918.7,1917.5,1.49455501]
[1771514587447,0.596,1918.6,1917.5,1.49455501]
[1771514587652,1.46790189,1918.5,1917.5,1.49455501]
[1771514588040,1.46790189,1918.5,1917.4,1.528]
[1771514588362,1.46790189,1918.3,1917.4,1.528]
[1771514588661,2.06390189,1918.3,1917.4,1.528]
[1771514588863,8.093282,1918.2,1917.4,1.528]
[1771514589036,1.30337312,1918.1,1917.4,2.83178321]
[1771514589345,12.88230151,1918.2,1917.4,2.83184317]
[1771514589346,1.30334464,1918.2,1917.4,2.83184317]
[1771514589534,1.89934464,1918.2,1917.4,2.83184317]
[1771514589736,1.30334464,1918.2,1917.4,2.83184317]
[1771514589938,1.89934464,1918.2,1917.4,2.83184317]
[1771514590259,0.596,1918.3,1917.4,2.83184317]
[1771514590458,1.89924187,1918.3,1917.4,2.83184317]
[1771514591343,1.46790189,1918.7,1917.5,1.49455501]
[1771514591543,1.3030872,1918.6,1917.5,1.49455501]
[1771514591979,0.596,1918.7,1917.7,1.49455501]
[1771514592177,2.06390189,1919.0,1917.7,1.49455501]
[1771514592358,0.001,1918.7,1917.7,1.49455501]
[1771514593291,0.001,1918.7,1917.9,1.49455501]
[1771514593576,1.30356698,1919.3,1918.2,1.49455501]
[1771514593750,1.25356698,1919.3,1918.2,1.49455501]
[1771514594474,2.77039225,1919.4,1918.2,1.49455501]
[1771514594674,1.30249036,1919.4,1918.2,1.49455501]
[1771514595288,2.77039225,1919.4,1918.3,1.30323724]
[1771514595954,1.46790189,1919.2,1917.7,1.30364499]
[1771514596252,25.45601,1919.3,1917.6,0.0011]
[1771514596253,1.46790189,1918.8,1917.6,0.0011]
[1771514596483,0.596,1918.7,1917.6,1.30478536]
[1771514596781,1.46790189,1919.1,1917.7,1.49455501]
[1771514596946,9.98019019,1919.3,1917.7,1.49455501]
[1771514596947,3.00290189,1919.0,1917.7,1.49455501]
[1771514597143,1.30282974,1918.9,1917.8,1.30357701]
[1771514597548,1.30282974,1918.9,1917.8,2.79813202]
[1771514598076,0.596,1919.2,1917.9,1.49455501]
[1771514598279,0.596,1919.2,1918.0,2.08355501]
[1771514598472,4.138425,1919.0,1918.0,0.589]
[1771514598780,14.174101,1918.8,1917.8,1.30357701]
[1771514598976,0.596,1918.8,1917.8,1.30357701]
[1771514599372,1.898942,1918.8,1917.8,2.79813202]
[1771514599582,1.302942,1918.8,1917.8,2.79813202]
[1771514600171,1.302942,1918.8,1917.9,1.49455501]
[1771514600366,0.939,1919.3,1917.9,1.49455501]
[1771514600568,1.30251575,1919.4,1917.9,1.49455501]
[1771514600759,2.77041764,1919.4,1917.9,1.49455501]
[1771514601291,5.379478,1919.3,1917.9,1.49455501]
[1771514601495,1.30262609,1919.2,1918.1,1.49455501]
[1771514601657,1.30262609,1919.2,1918.2,1.528]
[1771514602500,15.32257289,1919.1,1918.2,1.528]
[1771514602783,1.46790189,1919.1,1918.2,1.528]
[1771514603186,1.30262609,1919.2,1918.2,1.528]
[1771514603384,1.30262609,1919.2,1918.3,1.30323724]
[1771514603688,2.291889,1919.1,1918.3,1.30323724]
[1771514603857,2.291889,1919.1,1918.2,1.528]
[1771514604059,6.120872,1919.0,1918.2,2.83130052]
[1771514604285,1.46790189,1919.1,1918.2,2.83130052]
[1771514605186,1.30262609,1919.2,1918.2,2.83130052]
[1771514605392,1.30262609,1919.2,1918.3,0.0011]
[1771514605689,1.30362609,1919.2,1918.3,0.0011]
[1771514606589,2.77152798,1919.2,1918.3,0.0011]
[1771514607183,12.44741889,1919.1,1918.3,0.0011]
[1771514607402,1.46790189,1919.1,1918.3,0.0011]
[1771514607564,1.30276185,1919.0,1918.3,0.0011]
[1771514609502,2.77066374,1919.0,1918.3,0.0011]
[1771514609676,1.46790189,1918.9,1918.3,0.0011]
[1771514610359,1.30276185,1919.0,1918.3,0.0011]
[1771514610893,3.36666374,1919.0,1918.3,0.0011]
[1771514611696,11.975093,1918.8,1918.3,0.0011]
[1771514612068,0.4072433,1918.7,1918.3,0.0011]
[1771514612265,1.46790189,1918.9,1918.3,0.0011]
[1771514612470,1.46790189,1918.7,1918.0,0.0011]
[1771514613089,2.06390189,1918.6,1918.0,0.0011]
[1771514613263,12.447389,1918.5,1918.0,0.0011]
[1771514613464,1.46790189,1918.9,1918.0,1.30453093]
[1771514613691,1.89902867,1918.7,1918.0,0.0011]
[1771514614099,1.89896777,1918.7,1918.0,0.0011]
[1771514614394,1.30296777,1918.7,1918.0,0.0011]
[1771514615892,1.46790189,1918.6,1918.0,0.0011]
[1771514616267,0.597,1918.6,1918.0,0.0011]
[1771514616774,0.597,1918.6,1917.6,1.30478999]
[1771514616775,0.5774551,1917.7,1917.6,1.30478999]
[1771514616974,12.304417,1918.4,1917.6,1.30478999]
[1771514617179,0.597,1918.4,1917.6,1.30478999]
[1771514617568,1.30323724,1918.3,1917.6,0.0011]
[1771514617770,1.30323724,1918.3,1918.1,0.0011]
[1771514617981,1.30323724,1918.3,1918.1,4.502e-05]
[1771514618581,1.30323724,1918.3,1917.6,0.0011]
[1771514619492,1.30323724,1918.3,1917.8,0.0011]
[1771514619696,5.2129409,1918.4,1917.8,0.0011]
[1771514620087,7.24292574,1918.5,1917.8,0.0011]
[1771514620088,6.64503551,1918.5,1917.8,0.0011]
[1771514620394,5.21227661,1918.6,1917.8,0.0011]
[1771514620578,0.598,1918.5,1917.8,0.0011]
[1771514621170,1.30296554,1918.7,1917.8,1.40620389]
[1771514621382,1.30294413,1918.8,1917.8,1.40620389]
[1771514621782,1.30294413,1918.8,1917.9,1.30350904]
[1771514622812,1.4325079,1918.7,1917.8,1.30467701]
[1771514623015,1.30294413,1918.8,1917.8,2.7097809]
[1771514623385,1.90094413,1918.8,1917.8,2.7097809]
[1771514623589,3.211786,1918.7,1917.8,2.7097809]
[1771514623786,1.4325079,1918.7,1917.8,2.7097809]
[1771514624113,16.0504929,1918.6,1917.8,0.0011]
[1771514624414,1.4325079,1918.6,1917.8,0.0011]
[1771514624804,14.4042189,1918.3,1917.8,0.0011]
[1771514625032,12.710711,1918.2,1917.8,0.0011]
[1771514625582,7.164642,1918.2,1917.8,0.0011]
[1771514625782,1.30330518,1918.2,1917.8,0.0011]
[1771514626213,1.90330518,1918.2,1917.8,0.0011]
[1771514626711,1.4325079,1918.0,1917.6,0.0011]
[1771514626890,1.4325079,1917.9,1917.3,0.9401]
[1771514627095,3.33581308,1918.2,1917.3,2.24400447]
[1771514627296,0.6,1918.1,1917.3,3.64910836]
[1771514627481,3.33581308,1918.2,1917.3,3.64910836]
[1771514628416,1.30330518,1918.2,1917.3,3.64910836]
[1771514628581,0.6,1918.3,1917.4,1.40510389]
[1771514629199,1.30296554,1918.7,1917.4,1.40510389]
[1771514629410,1.90296554,1918.7,1917.4,1.40510389]
[1771514629607,1.4325079,1919.1,1917.5,1.40510389]
[1771514629807,1.4325079,1919.1,1917.7,1.40510389]
[1771514630037,0.001,1919.2,1917.9,1.40510389]
[1771514630209,0.001,1919.2,1918.3,1.40510389]
[1771514630419,0.001,1919.2,1918.5,1.40510389]
[1771514630922,1.30215301,1919.9,1918.5,1.40510389]
[1771514631220,0.001,1920.1,1918.7,1.40510389]
[1771514631521,0.001,1920.1,1918.9,1.40510389]
[1771514631522,1.30301689,1920.1,1918.9,1.40510389]
[1771514631726,1.30301689,1920.1,1919.1,1.40510389]
[1771514631901,1.30303943,1920.1,1919.1,1.40510389]
[1771514632104,0.001,1920.1,1919.2,1.30262609]
[1771514632291,0.001,1920.1,1919.2,2.70772998]
[1771514632496,0.001,1920.1,1919.3,1.40510389]
[1771514632717,1.4335079,1920.1,1919.0,2.70782273]
[1771514633028,1.4335079,1920.1,1919.0,3.29282273]
[1771514633233,1.4335079,1920.1,1919.0,0.585]
[1771514633394,1.78499918,1920.1,1919.0,1.8877371]
[1771514633592,1.78399918,1920.0,1919.0,1.8877371]
[1771514633941,0.35149128,1919.9,1919.0,1.8877371]
[1771514634097,1.65364243,1919.9,1919.0,1.8877371]
[1771514634506,0.35149128,1919.8,1919.0,1.8877371]
[1771514634743,2.73465905,1919.9,1919.0,1.8877371]
[1771514635621,13.9061209,1919.8,1919.0,0.585]
[1771514635932,1.4325079,1919.8,1919.0,1.88774968]
[1771514636332,1.65377809,1919.7,1919.0,1.88774968]
[1771514636501,5.80736991,1920.0,1919.0,1.88774968]
[1771514636502,0.599,1920.0,1919.0,1.88774968]
[1771514636707,0.599,1920.0,1919.1,1.40510389]
[1771514636708,1.90113829,1920.0,1919.1,1.40510389]
[1771514636933,1.30213829,1920.0,1919.1,1.40510389]
[1771514637836,1.65362957,1920.0,1919.1,1.40510389]
[1771514638044,1.30306986,1920.1,1919.1,1.40510389]
[1771514638205,1.30306986,1920.1,1919.2,2.70772998]
[1771514639428,1.65456114,1920.1,1919.2,2.70772998]
[1771514639734,1.30306986,1920.1,1919.2,2.70772998]
[1771514639941,1.30306986,1920.1,1919.3,1.40510389]
[1771514639942,0.001,1920.1,1919.3,1.40510389]
[1771514640307,0.001,1920.1,1919.5,1.40510389]
[1771514640732,0.001,1920.1,1919.4,1.30249036]
[1771514641113,0.001,1920.1,1919.4,2.66237792]
[1771514641445,0.001,1920.1,1919.4,1.30249036]
[1771514641740,0.001,1920.1,1919.2,2.66246473]
[1771514642812,0.001,1920.1,1919.3,1.35988756]
[1771514643409,1.30154102,1920.8,1919.4,1.35988756]
[1771514643810,7.28567728,1920.5,1919.4,1.35988756]
[1771514644034,1.45842228,1920.5,1919.4,1.35988756]
[1771514644642,0.001,1920.0,1919.5,2.66231006]
[1771514645010,0.001,1920.0,1919.5,1.35988756]
[1771514645211,0.001,1920.0,1919.4,1.30243625]
[1771514646635,0.001,1920.0,1919.3,5.21118764]
[1771514646837,0.001,1920.0,1919.3,1.30365822]
[1771514647017,0.001,1920.0,1919.3,0.0011]
[1771514648728,0.001,1920.0,1919.3,1.41503564]
[1771514649720,1.30178448,1920.5,1919.3,0.0011]
[1771514649919,1.30178448,1920.5,1919.4,1.41393564]
[1771514650552,1.35337782,1920.9,1919.7,1.41393564]
[1771514650716,2.65485108,1920.9,1919.9,1.41393564]
[1771514650926,1.35337782,1920.9,1919.9,1.41393564]
[1771514651233,1.30145724,1921.0,1919.9,1.41393564]
[1771514651423,2.65469341,1921.2,1919.9,1.41393564]
[1771514651630,5.20471722,1921.4,1920.2,1.41393564]
[1771514651827,1.35337782,1921.5,1920.2,1.41393564]
[1771514652038,1.30104101,1921.6,1920.2,1.41393564]
[1771514652346,0.001,1921.8,1920.5,1.41393564]
[1771514652533,0.001,1921.8,1920.9,1.41393564]
[1771514652738,1.35337782,1922.4,1921.1,1.41393564]
[1771514652924,2.65384734,1922.4,1921.3,1.41393564]
[1771514653124,2.65384734,1922.4,1921.2,9.05030749]
[1771514653125,1.35337782,1922.6,1921.0,2.71534115]
[1771514653324,1.35337782,1922.6,1921.1,1.41393564]
[1771514654017,1.35337782,1922.5,1921.1,1.41393564]
[1771514654237,2.65349743,1922.9,1921.2,1.41393564]
[1771514654632,5.20047844,1923.2,1921.9,9.05030749]
[1771514654633,1.35337782,1923.2,1921.9,9.05030749]
[1771514654820,1.29971406,1923.5,1922.4,1.41393564]
[1771514655138,0.35149128,1923.5,1922.3,1.41393564]
[1771514655341,2.52639022,1924.0,1922.3,1.41393564]
[1771514655550,2.52639022,1924.0,1922.2,2.60773676]
[1771514655551,1.29944383,1923.9,1922.6,1.41393564]
[1771514656257,2.65282165,1923.9,1922.6,1.41393564]
[1771514656417,1.7048691,1923.8,1922.3,1.41393564]
[1771514656617,1.7048691,1923.8,1922.5,1.41393564]
[1771514656618,1.35337782,1923.8,1922.5,1.41393564]
[1771514656851,1.29955861,1923.8,1922.5,1.41393564]
[1771514657032,1.29949063,1923.9,1922.6,1.41393564]
[1771514657422,2.65286845,1923.9,1922.6,1.41393564]
[1771514657823,0.001,1923.3,1922.6,1.41393564]
[1771514658023,1.29949063,1923.9,1922.6,1.41393564]
[1771514658552,4.20862282,1924.1,1922.6,1.41393564]
[1771514658849,1.29944383,1923.9,1922.7,1.30025484]
[1771514659253,1.35337782,1924.5,1923.1,1.41393564]
[1771514659445,6.55005054,1924.4,1923.1,1.41393564]
[1771514660068,1.35337782,1924.2,1922.8,1.41393564]
[1771514660352,2.9922969,1924.1,1922.8,1.41393564]
[1771514660662,1.29944383,1923.9,1922.8,2.71405613]
[1771514660830,2.932438,1923.8,1922.8,2.71405613]
[1771514661223,1.29944383,1923.9,1922.8,2.71405613]
[1771514661224,0.3875259,1923.7,1922.8,2.71405613]
[1771514661424,1.29944383,1923.9,1922.8,2.71405613]
[1771514661643,0.3875259,1923.8,1922.8,2.71405613]
[1771514661859,1.29944383,1923.9,1922.8,2.71405613]
[1771514662229,1.35337782,1923.7,1922.5,1.30039011]
[1771514662428,1.35337782,1923.6,1922.5,1.30039011]
[1771514662721,1.29971406,1923.5,1922.5,1.30039011]
[1771514663271,2.6528892,1923.8,1922.6,1.41393564]
[1771514663558,1.35337782,1923.6,1922.5,1.30039011]
[1771514664645,1.29951138,1923.8,1922.5,2.71432575]
[1771514664851,1.35337782,1923.7,1922.7,1.30025484]
[1771514665233,1.29951138,1923.8,1922.7,2.71419048]
[1771514666463,5.19777535,1924.0,1922.8,1.41393564]
[1771514666929,5.19777535,1924.0,1922.9,2.71405525]
[1771514667356,1.29937629,1924.0,1922.9,2.71405525]
[1771514667633,5.58075154,1924.3,1923.0,1.41393564]
[1771514667833,2.65255154,1924.3,1923.0,1.41393564]
[1771514668731,2.65255154,1924.3,1922.9,1.30011961]
[1771514668732,1.29903871,1924.5,1923.3,1.41393564]
[1771514668931,0.3875259,1924.6,1923.4,2.71371727]
[1771514669348,1.35337782,1924.7,1923.4,2.71371727]
[1771514669549,1.35337782,1924.5,1923.4,1.29978163]
[1771514670166,0.001,1923.9,1923.4,1.29978163]
[1771514670838,0.001,1923.9,1923.1,1.2999844]
[1771514673662,2.66084017,1923.8,1922.7,1.30025181]
[1771514673867,1.35337782,1923.7,1922.7,1.30025181]
[1771514675257,1.29964649,1923.6,1922.6,1.41503564]
[1771514675769,2.65386878,1923.9,1922.7,1.41393564]
[1771514677245,0.001,1923.9,1922.9,1.31439086]
[1771514678054,2.69224836,1924.6,1923.3,1.31439086]
[1771514678250,1.29901953,1924.6,1923.3,1.31439086]
[1771514678658,5.19549472,1924.8,1923.3,1.31439086]
[1771514679259,5.19549472,1924.8,1923.5,1.31439086]
[1771514679260,1.29883624,1924.8,1923.5,1.31439086]
[1771514679451,0.001,1925.4,1923.7,1.31439086]
[1771514679652,2.69172776,1925.3,1923.7,1.31439086]
[1771514680358,5.89079983,1925.2,1923.7,1.31439086]
[1771514680562,1.39322883,1925.2,1923.7,1.31439086]
[1771514680882,1.39322883,1925.2,1923.6,9.75518311]
[1771514680883,0.001,1925.4,1924.1,1.31439086]
[1771514681084,1.29943424,1925.4,1924.1,1.31439086]
[1771514681282,0.001,1925.4,1924.3,1.31439086]
[1771514681650,0.001,1925.4,1924.5,1.31439086]
[1771514683286,0.001,1925.4,1924.6,1.29897121]
[1771514683453,0.001,1925.4,1924.7,1.31439086]
[1771514684187,5.19225043,1926.0,1924.7,1.31439086]
[1771514684188,1.29802699,1926.0,1924.7,1.31439086]
[1771514684385,1.29900696,1926.1,1924.9,1.31439086]
[1771514685061,2.69223579,1926.1,1924.9,1.31439086]
[1771514685385,0.001,1926.1,1925.0,2.61309215]
[1771514686254,0.001,1926.1,1925.0,1.29870129]
[1771514686472,1.39422883,1926.1,1925.0,2.61309215]
[1771514687991,2.69220622,1926.1,1925.1,1.31439086]
[1771514688284,0.001,1926.1,1925.1,1.31439086]
[1771514688859,0.001,1926.1,1925.3,1.31439086]
[1771514689064,0.001,1926.1,1925.4,2.25039086]
[1771514689489,0.001,1926.3,1925.5,1.31439086]
[1771514690012,0.001,1926.3,1925.6,1.29829663]
[1771514690299,0.001,1926.3,1925.7,0.584]
[1771514691188,0.001,1926.3,1925.7,1.89839086]
[1771514691759,0.001,1926.3,1925.7,0.584]
[1771514691966,0.001,1926.3,1925.8,1.2981618]
[1771514693195,0.001,1926.5,1925.9,1.31439086]
[1771514694098,0.001,1926.5,1926.0,1.29802699]
[1771514694269,0.001,1926.5,1926.1,0.584]
[1771514695368,0.001,1926.5,1925.8,1.88313256]
[1771514695369,0.3885259,1926.5,1925.8,1.88313256]
[1771514695594,0.001,1926.5,1925.8,1.88313256]
[1771514697504,0.001,1926.5,1925.9,0.0011]
[1771514697678,0.001,1926.4,1925.9,0.0011]
[1771514699991,0.001,1926.4,1925.9,1.31549086]
[1771514700182,0.001,1926.4,1926.0,1.29802699]
[1771514700578,0.001,1926.4,1925.9,1.29917863]
[1771514700984,0.001,1926.4,1925.9,0.0011]
[1771514701192,1.2969301,1926.4,1925.8,0.0011]
[1771514701391,1.2959301,1926.3,1925.8,0.0011]
[1771514702012,1.2959301,1926.3,1925.6,0.0011]
[1771514702233,9.75518311,1926.0,1924.3,1.22374419]
[1771514702517,1.2959301,1925.3,1923.9,0.936]
[1771514702681,1.8819301,1925.2,1923.9,3.45914558]
[1771514702884,1.2959301,1925.1,1923.9,3.45914558]
[1771514703116,1.2959301,1925.6,1924.1,9.75518311]
[1771514703291,1.2959301,1925.6,1924.2,1.22374419]
[1771514703490,1.2959301,1925.6,1924.3,1.80874419]
[1771514704285,1.2959301,1925.6,1924.5,1.22374419]
[1771514704614,2.59424216,1925.6,1924.5,1.22374419]
[1771514704816,1.2959301,1925.6,1924.5,1.22374419]
[1771514705215,2.59387233,1926.2,1924.9,1.22374419]
[1771514705395,1.2959301,1926.1,1925.0,1.80774419]
[1771514705595,2.5947153,1926.4,1925.1,1.22374419]
[1771514705810,2.59469502,1926.4,1925.1,1.22374419]
[1771514706182,1.2959301,1926.3,1925.2,1.29856638]
[1771514706712,1.2959301,1926.3,1925.2,2.60378523]
[1771514707690,1.2959301,1926.3,1925.2,1.29856638]
[1771514708099,1.2959301,1926.3,1925.1,1.29858075]
[1771514708305,1.30895341,1926.1,1925.1,1.29858075]
[1771514710411,1.30895341,1925.9,1925.3,0.0011]
[1771514710587,1.30895341,1925.9,1925.1,1.29858075]
[1771514711120,1.30895341,1925.7,1924.7,0.585]
[1771514711501,0.586,1925.9,1924.8,1.30521885]
[1771514711702,0.586,1925.9,1925.0,0.0011]
[1771514712103,1.30895341,1925.7,1925.0,0.0011]
[1771514712299,1.29829663,1925.6,1925.0,0.0011]
[1771514713419,2.60725004,1925.6,1925.0,0.0011]
[1771514713631,1.30895341,1925.6,1925.0,0.0011]
[1771514714551,1.30895341,1925.4,1925.0,0.0011]
[1771514715169,2.60729058,1925.6,1925.0,0.0011]
[1771514715301,7.84571264,1925.8,1925.0,0.0011]
[1771514715302,2.6530556,1925.8,1925.0,0.0011]
[1771514715505,1.30895341,1925.9,1925.0,0.0011]
[1771514715506,2.60706022,1925.9,1925.0,0.0011]
[1771514717109,3.19306022,1925.9,1925.0,0.0011]
[1771514717439,1.30895341,1925.8,1925.0,0.0011]
[1771514718011,2.47610529,1925.9,1925.0,0.0011]
[1771514718206,1.30895341,1926.1,1925.0,1.30631885]
[1771514718512,1.29802699,1926.0,1925.2,1.29856638]
[1771514719242,1.30895341,1925.7,1925.0,2.23576141]
[1771514720554,1.2981618,1925.8,1925.0,2.23576141]
[1771514721256,1.30895341,1925.7,1925.0,2.23576141]
[1771514722510,2.60718771,1925.7,1925.0,2.23576141]
[1771514722710,2.6070084,1926.0,1925.0,3.54098026]
[1771514722910,1.29893009,1926.2,1925.1,1.30521885]
[1771514723143,1.30895341,1926.1,1925.0,1.29976141]
[1771514723321,2.746475,1926.0,1925.0,1.29976141]
[1771514723521,1.30895341,1925.9,1925.0,1.29976141]
[1771514724027,2.6078835,1926.2,1925.0,2.60498026]
[1771514724209,1.30895341,1926.1,1925.1,0.0011]
[1771514725219,1.30895341,1925.9,1925.2,0.584]
[1771514725719,1.30895341,1925.7,1925.0,0.0011]
[1771514725916,2.47610529,1925.8,1925.0,0.0011]
[1771514725917,1.30895341,1925.5,1925.0,0.0011]
[1771514726819,3.41210529,1925.8,1925.0,1.29976827]
[1771514726820,4.3710587,1925.8,1925.0,1.29976827]
[1771514727244,2.60691301,1926.1,1925.0,0.0011]
[1771514727444,2.60691301,1926.1,1925.0,1.30631885]
[1771514727753,3.19291301,1926.1,1925.0,1.30631885]
[1771514727934,1.30895341,1926.0,1925.0,1.30631885]
[1771514728138,1.29894067,1926.2,1925.1,1.88921885]
[1771514728363,1.29894067,1926.2,1925.2,1.30521885]
[1771514728364,1.29890004,1926.2,1925.2,1.30521885]
[1771514728517,1.29889801,1926.2,1925.2,1.30521885]
[1771514728717,1.30895341,1926.1,1925.1,0.584]
[1771514729442,2.6069804,1926.0,1925.1,1.29858452]
[1771514729645,1.30895341,1925.9,1925.1,1.29858452]
[1771514729859,1.29802699,1926.0,1925.1,1.29858452]
[1771514730220,2.6069804,1926.0,1925.1,1.29858452]
[1771514731245,2.6069804,1926.0,1925.0,0.0011]
[1771514731246,1.30895341,1925.7,1925.0,0.0011]
[1771514731458,1.29829663,1925.6,1925.0,0.0011]
[1771514733120,1.30895341,1925.5,1924.8,0.9371]
[1771514733321,2.6073849,1925.4,1924.8,0.0011]
[1771514733652,0.586,1925.3,1924.8,0.0011]
[1771514733820,0.586,1925.3,1924.8,0.00014171]
[1771514733821,1.30895341,1925.2,1924.8,0.00014171]
[1771514734027,1.30895341,1925.2,1924.0,2.60457071]
[1771514734223,1.30895341,1925.2,1924.0,0.583]
[1771514734623,1.522,1925.3,1923.6,6.50326438]
[1771514734624,1.30895341,1924.8,1923.6,1.88163966]
[1771514734831,1.30895341,1924.8,1923.6,3.18685851]
[1771514736326,1.29890372,1924.7,1924.4,0.0011]
[1771514736526,2.44497703,1924.7,1923.6,3.18685851]
[1771514736826,1.14607331,1924.6,1923.6,1.88721885]
[1771514737026,1.14607331,1924.5,1923.6,0.582]
[1771514737227,1.14607331,1924.5,1924.1,0.0011]
[1771514737428,1.14607331,1924.5,1923.6,0.582]
[1771514737928,1.14607331,1924.5,1923.3,0.936]
[1771514738356,1.14607331,1924.2,1923.3,2.23584693]
[1771514738535,1.29917372,1924.3,1923.3,2.23584693]
[1771514738857,1.29917372,1924.3,1923.4,1.1445194]
[1771514739726,1.14607331,1924.2,1923.3,0.936]
[1771514740125,1.14607331,1924.2,1923.3,2.23583665]
[1771514740324,1.14607331,1924.2,1923.3,0.936]
[1771514740528,1.29930876,1924.1,1923.3,2.23584095]
[1771514741939,1.88510621,1924.4,1923.3,3.38036035]
[1771514742352,1.14607331,1924.3,1923.3,2.0805194]
[1771514742553,1.14607331,1924.3,1923.0,1.1456194]
[1771514742554,1.14607331,1924.1,1923.0,1.1456194]
[1771514742752,1.29924124,1924.2,1923.0,0.0011]
[1771514742753,1.14607331,1923.9,1923.0,0.0011]
[1771514742960,1.14607331,1923.9,1923.0,1.30115175]
[1771514743158,1.73207331,1923.9,1923.0,1.30115175]
[1771514743361,1.73207331,1923.9,1923.0,0.0011]
[1771514743736,0.586,1923.9,1923.0,2.44566356]
[1771514743961,3.38131455,1924.2,1923.0,2.44566356]
[1771514743962,2.44531455,1924.2,1923.1,1.1445194]
[1771514744459,1.29910621,1924.4,1923.3,1.1445194]
[1771514744655,1.29910621,1924.4,1923.5,1.1445194]
[1771514745037,2.44517952,1924.4,1923.4,0.582]
[1771514745232,1.29910621,1924.4,1923.4,0.582]
[1771514745466,1.14607331,1924.3,1923.4,0.582]
[1771514746033,1.14607331,1924.1,1923.0,0.0011]
[1771514746265,1.14607331,1924.1,1923.0,1.3011464]
[1771514746669,1.29937629,1924.0,1923.0,1.3011464]
[1771514747239,2.4454496,1924.0,1923.0,1.3011464]
[1771514747432,2.4454496,1924.0,1923.0,0.0011]
[1771514747433,1.14607331,1923.9,1923.0,0.0011]
[1771514748476,0.587,1923.8,1923.0,0.0011]
[1771514748778,1.29957893,1923.7,1923.0,0.0011]
[1771514749449,1.29957893,1923.7,1923.4,0.0011]
[1771514749852,1.29955099,1923.8,1923.4,0.0011]
[1771514750755,5.19786917,1923.9,1923.4,0.0011]
[1771514750980,1.14607331,1923.8,1923.2,0.0011]
[1771514752563,1.29957893,1923.7,1923.2,0.0011]
[1771514752888,1.29957893,1923.7,1922.9,1.88319507]
[1771514752889,1.14607331,1923.5,1922.9,0.0011]
[1771514753051,1.14607331,1923.5,1922.7,0.0011]
[1771514753052,0.589,1923.4,1922.7,0.0011]
[1771514753248,1.14607331,1923.3,1922.7,0.0011]
[1771514754177,0.589,1923.2,1922.7,0.0011]
[1771514754379,10.13148603,1923.6,1922.7,0.0011]
[1771514754578,1.29978163,1923.4,1922.7,0.0011]
[1771514755372,3.03485494,1923.4,1922.7,0.0011]
[1771514756180,3.42238084,1923.4,1922.7,0.0011]
[1771514756887,1.73507331,1923.3,1922.7,0.0011]
[1771514758059,0.589,1923.3,1922.7,0.0011]
[1771514758260,1.14607331,1923.2,1922.7,0.0011]
[1771514759481,1.29978163,1923.4,1922.7,0.0011]
[1771514760084,0.59,1923.6,1922.7,0.0011]
[1771514760263,1.29957893,1923.7,1922.7,1.10885408]
[1771514760585,1.88957893,1923.7,1922.7,1.10885408]
[1771514760781,1.88951138,1923.8,1922.7,1.10885408]
[1771514761369,1.29951138,1923.8,1922.7,1.10885408]
[1771514761552,1.22504874,1924.4,1922.9,1.10775408]
[1771514761753,1.22404874,1924.2,1922.9,1.10775408]
[1771514761956,1.89017372,1924.3,1922.9,1.10775408]
[1771514761957,1.22404874,1924.0,1922.9,1.10775408]
[1771514762166,1.22404874,1923.8,1922.7,1.30129959]
[1771514762505,1.22404874,1923.6,1922.7,0.0011]
[1771514762654,0.59,1923.5,1922.8,0.0011]
[1771514762861,2.71918348,1923.9,1922.8,0.0011]
[1771514763083,0.001,1923.6,1922.8,0.0011]
[1771514763461,0.001,1923.6,1922.9,1.30011961]
[1771514763794,0.001,1923.6,1922.9,2.40787369]
[1771514764163,0.001,1923.6,1922.9,1.10775408]
[1771514765473,0.001,1923.6,1923.0,1.300052]
[1771514766358,0.001,1923.6,1923.1,1.10775408]
[1771514766788,0.001,1923.6,1923.0,1.300052]
[1771514767486,0.001,1923.6,1922.9,5.200208]
[1771514767487,0.001,1923.6,1922.8,1.2025631]
[1771514767784,0.001,1923.6,1922.8,1.30124297]
[1771514767785,1.18070162,1923.6,1922.8,1.30124297]
[1771514768492,1.18070162,1923.6,1922.8,1.30128067]